[Event "Late-Titled-Tuesday-Blitz-September-19-2023"]
[Site "Chess.com"]
[Date "2023.09.19"]
[Round "4"]
[White "talaicito"]
[Black "Lion_DL"]
[Result "1-0"]
[WhiteElo "2178"]
[BlackElo "2428"]
[TimeControl "180+1"]
[EndTime "14:37:16 PDT"]
[Termination "talaicito won by resignation"]

1. d4 {[%clk 0:03:00.9]} 1... Nf6 {[%clk 0:02:57]} 2. Nc3 {[%clk 0:03:00.8]}
2... d5 {[%clk 0:02:56.7]} 3. Bf4 {[%clk 0:03:00]} 3... c5 {[%clk 0:02:57.3]} 4.
e3 {[%clk 0:03:00.1]} 4... cxd4 {[%clk 0:02:57.8]} 5. exd4 {[%clk 0:03:00.1]}
5... a6 {[%clk 0:02:58.6]} 6. Nf3 {[%clk 0:02:59.7]} 6... Nc6 {[%clk 0:02:57.8]}
7. Ne5 {[%clk 0:02:58.8]} 7... e6 {[%clk 0:02:52.5]} 8. Be2 {[%clk 0:02:53.5]}
8... Bb4 {[%clk 0:02:51.2]} 9. O-O {[%clk 0:02:51.9]} 9... Bxc3 {[%clk 0:02:47]}
10. bxc3 {[%clk 0:02:51.4]} 10... Ne4 {[%clk 0:02:46.5]} 11. Qd3 {[%clk
0:02:43.4]} 11... O-O {[%clk 0:02:42.4]} 12. c4 {[%clk 0:02:37.9]} 12... f5
{[%clk 0:02:18.2]} 13. f3 {[%clk 0:01:58.9]} 13... dxc4 {[%clk 0:02:10.6]} 14.
Qxc4 {[%clk 0:01:53.1]} 14... Qxd4+ {[%clk 0:02:09.8]} 15. Qxd4 {[%clk
0:01:36.1]} 15... Nxd4 {[%clk 0:02:10.7]} 16. Bd3 {[%clk 0:01:35.3]} 16... Nc3
{[%clk 0:02:10.4]} 17. Rfe1 {[%clk 0:01:32.3]} 17... Nd5 {[%clk 0:02:08.3]} 18.
Bd2 {[%clk 0:01:20.6]} 18... Nc6 {[%clk 0:01:43.5]} 19. Nxc6 {[%clk 0:01:07.6]}
19... bxc6 {[%clk 0:01:44.4]} 20. Rab1 {[%clk 0:01:06.8]} 20... Kf7 {[%clk
0:01:14.7]} 21. a4 {[%clk 0:00:51]} 21... Ke7 {[%clk 0:01:00.6]} 22. c4 {[%clk
0:00:48.7]} 22... Nf6 {[%clk 0:00:54.3]} 23. Bb4+ {[%clk 0:00:49.2]} 23... Kf7
{[%clk 0:00:54.4]} 24. Bxf8 {[%clk 0:00:49.7]} 24... Kxf8 {[%clk 0:00:55.3]} 25.
Rb6 {[%clk 0:00:48.3]} 25... Bd7 {[%clk 0:00:53]} 26. a5 {[%clk 0:00:43.5]}
26... c5 {[%clk 0:00:49]} 27. Rd6 {[%clk 0:00:38.9]} 27... Ke7 {[%clk 0:00:49]}
28. Rb6 {[%clk 0:00:37.5]} 28... Ne8 {[%clk 0:00:30.5]} 29. Bxf5 {[%clk
0:00:36.7]} 29... Nd6 {[%clk 0:00:30]} 30. Bd3 {[%clk 0:00:28.3]} 30... Nc8
{[%clk 0:00:21.4]} 31. Rb7 {[%clk 0:00:22.1]} 31... g6 {[%clk 0:00:20.3]} 32.
Be4 {[%clk 0:00:20.3]} 32... Nd6 {[%clk 0:00:20]} 33. Rxd7+ {[%clk 0:00:20.2]}
33... Kxd7 {[%clk 0:00:19.9]} 34. Bxa8 {[%clk 0:00:20.8]} 34... Nxc4 {[%clk
0:00:20.2]} 35. Rc1 {[%clk 0:00:17.5]} 35... Nxa5 {[%clk 0:00:20.2]} 36. Rxc5
{[%clk 0:00:18.1]} 36... Nb3 {[%clk 0:00:20.2]} 37. Rc3 {[%clk 0:00:17.9]} 37...
Nd4 {[%clk 0:00:19.7]} 38. Rd3 {[%clk 0:00:17.6]} 38... e5 {[%clk 0:00:20.4]}
39. Bd5 {[%clk 0:00:16.6]} 39... Kd6 {[%clk 0:00:20]} 40. Bg8 {[%clk 0:00:16.4]}
40... Kc5 {[%clk 0:00:20.2]} 41. Bxh7 {[%clk 0:00:15.8]} 1-0

[Event "Late-Titled-Tuesday-Blitz-September-19-2023"]
[Site "Chess.com"]
[Date "2023.09.19"]
[Round "4"]
[White "TheMagician"]
[Black "Haykoooo0o"]
[Result "1-0"]
[WhiteElo "2247"]
[BlackElo "2453"]
[TimeControl "180+1"]
[EndTime "14:37:20 PDT"]
[Termination "TheMagician won by resignation"]

1. d4 {[%clk 0:03:00]} 1... d5 {[%clk 0:03:00.1]} 2. c4 {[%clk 0:02:58.6]} 2...
e6 {[%clk 0:02:59.9]} 3. Nc3 {[%clk 0:02:58.4]} 3... Nf6 {[%clk 0:03:00.1]} 4.
Nf3 {[%clk 0:02:58.5]} 4... c6 {[%clk 0:03:00.4]} 5. e3 {[%clk 0:02:58.2]} 5...
Bd6 {[%clk 0:02:59.9]} 6. Qd3 {[%clk 0:02:54.6]} 6... Nbd7 {[%clk 0:02:59.4]} 7.
e4 {[%clk 0:02:54.6]} 7... dxc4 {[%clk 0:02:59.4]} 8. Qxc4 {[%clk 0:02:54.1]}
8... e5 {[%clk 0:03:00]} 9. dxe5 {[%clk 0:02:53]} 9... Nxe5 {[%clk 0:02:59]} 10.
Nxe5 {[%clk 0:02:52.6]} 10... Bxe5 {[%clk 0:02:59.9]} 11. f3 {[%clk 0:02:41.7]}
11... Be6 {[%clk 0:02:46.3]} 12. Qb4 {[%clk 0:02:29.6]} 12... Qb6 {[%clk
0:02:41.8]} 13. Qxb6 {[%clk 0:02:26.1]} 13... axb6 {[%clk 0:02:40.6]} 14. Be3
{[%clk 0:02:17.6]} 14... b5 {[%clk 0:02:39.5]} 15. f4 {[%clk 0:02:03.9]} 15...
Bxc3+ {[%clk 0:02:33.2]} 16. bxc3 {[%clk 0:02:03.4]} 16... Nxe4 {[%clk
0:02:33.7]} 17. a3 {[%clk 0:01:58.8]} 17... O-O {[%clk 0:02:19.7]} 18. Bd4
{[%clk 0:01:58]} 18... Bc4 {[%clk 0:02:15.5]} 19. Bxc4 {[%clk 0:01:47.4]} 19...
bxc4 {[%clk 0:02:15.7]} 20. Ke2 {[%clk 0:01:37.9]} 20... b5 {[%clk 0:02:04.8]}
21. Rhc1 {[%clk 0:01:31.4]} 21... Rfd8 {[%clk 0:01:50.9]} 22. Rc2 {[%clk
0:01:25]} 22... c5 {[%clk 0:01:44.1]} 23. Be3 {[%clk 0:01:23.6]} 23... Rd3
{[%clk 0:01:42.6]} 24. Bd2 {[%clk 0:01:11.6]} 24... Re8 {[%clk 0:01:34.7]} 25.
Be1 {[%clk 0:01:10.4]} 25... Nxc3+ {[%clk 0:01:29.6]} 26. Kf1 {[%clk 0:01:09]}
26... Na4 {[%clk 0:01:27.6]} 27. Rb1 {[%clk 0:01:07.8]} 27... Rb3 {[%clk
0:01:23.9]} 28. Rd1 {[%clk 0:00:58.1]} 28... Rxa3 {[%clk 0:01:19.9]} 29. Re2
{[%clk 0:00:57.7]} 29... Ra8 {[%clk 0:01:08.8]} 30. Rd7 {[%clk 0:00:52.8]} 30...
h6 {[%clk 0:01:04.3]} 31. Ree7 {[%clk 0:00:52.1]} 31... Nb6 {[%clk 0:00:54.6]}
32. Rb7 {[%clk 0:00:49.8]} 32... Nd5 {[%clk 0:00:54.8]} 33. Rxf7 {[%clk
0:00:47.4]} 33... c3 {[%clk 0:00:17.7]} 34. Rxg7+ {[%clk 0:00:46.1]} 34... Kf8
{[%clk 0:00:18]} 35. Rgf7+ {[%clk 0:00:35.5]} 35... Ke8 {[%clk 0:00:17.5]} 36.
Rh7 {[%clk 0:00:32.3]} 36... Ne3+ {[%clk 0:00:07.5]} 37. Ke2 {[%clk 0:00:28.4]}
1-0

[Event "Late-Titled-Tuesday-Blitz-September-19-2023"]
[Site "Chess.com"]
[Date "2023.09.19"]
[Round "4"]
[White "Nekoo04"]
[Black "Aariow"]
[Result "0-1"]
[WhiteElo "2334"]
[BlackElo "2516"]
[TimeControl "180+1"]
[EndTime "14:37:21 PDT"]
[Termination "Aariow won by checkmate"]

1. d4 {[%clk 0:03:00.9]} 1... d5 {[%clk 0:02:59.2]} 2. c4 {[%clk 0:03:00.2]}
2... e6 {[%clk 0:02:59.3]} 3. Nf3 {[%clk 0:03:00.5]} 3... Nf6 {[%clk 0:02:59.9]}
4. g3 {[%clk 0:03:00.8]} 4... Be7 {[%clk 0:03:00.2]} 5. Bg2 {[%clk 0:03:01.3]}
5... O-O {[%clk 0:03:00.8]} 6. O-O {[%clk 0:03:02]} 6... c6 {[%clk 0:03:01.6]}
7. Qc2 {[%clk 0:03:01.3]} 7... b6 {[%clk 0:03:02]} 8. Bf4 {[%clk 0:03:01.2]}
8... Bb7 {[%clk 0:02:54.9]} 9. Rd1 {[%clk 0:02:48.3]} 9... Na6 {[%clk
0:02:52.9]} 10. a3 {[%clk 0:02:37.6]} 10... c5 {[%clk 0:02:51.3]} 11. Nc3 {[%clk
0:02:25.3]} 11... dxc4 {[%clk 0:02:24.9]} 12. dxc5 {[%clk 0:02:24.7]} 12... Qc8
{[%clk 0:02:24.7]} 13. cxb6 {[%clk 0:02:07.4]} 13... axb6 {[%clk 0:02:25.6]} 14.
Nb5 {[%clk 0:02:02.2]} 14... Nd5 {[%clk 0:02:12.2]} 15. Bd6 {[%clk 0:01:55.8]}
15... Qc6 {[%clk 0:01:15.5]} 16. Nfd4 {[%clk 0:01:36.1]} 16... Qe8 {[%clk
0:01:14.4]} 17. e4 {[%clk 0:01:08.7]} 17... Nf6 {[%clk 0:01:04.9]} 18. e5 {[%clk
0:01:07.9]} 18... Nd5 {[%clk 0:01:03.2]} 19. Qxc4 {[%clk 0:00:43.1]} 19... Rc8
{[%clk 0:01:02.7]} 20. Qe2 {[%clk 0:00:36.2]} 20... Nc5 {[%clk 0:00:55.6]} 21.
Bxe7 {[%clk 0:00:26.6]} 21... Qxe7 {[%clk 0:00:55.8]} 22. Nd6 {[%clk 0:00:26.8]}
22... Ba6 {[%clk 0:00:56.1]} 23. Nxc8 {[%clk 0:00:20.9]} 23... Rxc8 {[%clk
0:00:55.8]} 24. Qe1 {[%clk 0:00:15.3]} 24... Nd3 {[%clk 0:00:51]} 25. Qd2 {[%clk
0:00:08.7]} 25... Nxe5 {[%clk 0:00:51.4]} 26. Bxd5 {[%clk 0:00:07.1]} 26... exd5
{[%clk 0:00:52.3]} 27. Nf5 {[%clk 0:00:06.8]} 27... Nf3+ {[%clk 0:00:17.1]} 28.
Kg2 {[%clk 0:00:06.7]} 28... Qe4 {[%clk 0:00:16.1]} 29. Qxd5 {[%clk 0:00:06.4]}
29... Ne1+ {[%clk 0:00:15.6]} 30. Kh3 {[%clk 0:00:02.3]} 30... Bf1# {[%clk
0:00:10.4]} 0-1

[Event "Late-Titled-Tuesday-Blitz-September-19-2023"]
[Site "Chess.com"]
[Date "2023.09.19"]
[Round "4"]
[White "whitemirrorninja"]
[Black "szefru"]
[Result "0-1"]
[WhiteElo "2479"]
[BlackElo "2312"]
[TimeControl "180+1"]
[EndTime "14:37:22 PDT"]
[Termination "szefru won by resignation"]

1. Nf3 {[%clk 0:03:00.9]} 1... d5 {[%clk 0:02:58.1]} 2. e3 {[%clk 0:03:01.2]}
2... Nc6 {[%clk 0:02:57.2]} 3. b3 {[%clk 0:03:00]} 3... e5 {[%clk 0:02:57.2]} 4.
Bb5 {[%clk 0:02:58.2]} 4... Bd6 {[%clk 0:02:56.7]} 5. Bb2 {[%clk 0:02:58]} 5...
Qe7 {[%clk 0:02:56.6]} 6. d4 {[%clk 0:02:51.2]} 6... e4 {[%clk 0:02:54.1]} 7.
Ne5 {[%clk 0:02:51.2]} 7... Bd7 {[%clk 0:02:54.1]} 8. Nxd7 {[%clk 0:02:44.9]}
8... Qxd7 {[%clk 0:02:53.9]} 9. c4 {[%clk 0:02:38.6]} 9... Bb4+ {[%clk 0:02:48]}
10. Nc3 {[%clk 0:02:36.3]} 10... a6 {[%clk 0:02:48.2]} 11. Ba4 {[%clk
0:02:35.1]} 11... Nge7 {[%clk 0:02:43.7]} 12. O-O {[%clk 0:02:33.2]} 12... Bxc3
{[%clk 0:02:40.3]} 13. Bxc3 {[%clk 0:02:32.4]} 13... O-O {[%clk 0:02:40.2]} 14.
Qe2 {[%clk 0:02:11]} 14... f5 {[%clk 0:02:30]} 15. f3 {[%clk 0:01:43.6]} 15...
Qe6 {[%clk 0:02:25.9]} 16. fxe4 {[%clk 0:01:30.4]} 16... fxe4 {[%clk 0:02:26.8]}
17. Rxf8+ {[%clk 0:01:26.1]} 17... Rxf8 {[%clk 0:02:27.7]} 18. Rf1 {[%clk
0:01:26]} 18... Rxf1+ {[%clk 0:02:24.1]} 19. Qxf1 {[%clk 0:01:26.7]} 19... Nf5
{[%clk 0:01:50.8]} 20. Qf4 {[%clk 0:01:10.9]} 20... Nd6 {[%clk 0:01:24.3]} 21.
cxd5 {[%clk 0:00:49.8]} 21... Qxd5 {[%clk 0:01:25.2]} 22. b4 {[%clk 0:00:44.1]}
22... Qxa2 {[%clk 0:01:24.1]} 23. Bd1 {[%clk 0:00:27.2]} 23... Qb1 {[%clk
0:01:19.6]} 24. Qf1 {[%clk 0:00:26.9]} 24... Nxb4 {[%clk 0:01:07.1]} 25. d5
{[%clk 0:00:18.7]} 25... Nxd5 {[%clk 0:00:59.5]} 26. Bd4 {[%clk 0:00:19.4]}
26... b6 {[%clk 0:00:48.6]} 27. h4 {[%clk 0:00:19.5]} 27... c5 {[%clk
0:00:48.2]} 28. Be5 {[%clk 0:00:19.5]} 28... Nxe3 {[%clk 0:00:43]} 29. Qxa6
{[%clk 0:00:08.1]} 29... Qxd1+ {[%clk 0:00:42]} 30. Kh2 {[%clk 0:00:06.3]} 30...
Ng4+ {[%clk 0:00:42.3]} 31. Kg3 {[%clk 0:00:06.6]} 31... Nxe5 {[%clk 0:00:41.4]}
32. Qxb6 {[%clk 0:00:04.8]} 32... Qd3+ {[%clk 0:00:37.7]} 33. Kf4 {[%clk
0:00:04.6]} 33... Ng6+ {[%clk 0:00:35.9]} 34. Kg4 {[%clk 0:00:03.4]} 34... Qe2+
{[%clk 0:00:32.6]} 35. Kh3 {[%clk 0:00:02.9]} 35... Nf4+ {[%clk 0:00:29.9]} 36.
Kg3 {[%clk 0:00:03.6]} 36... Qe3+ {[%clk 0:00:29.3]} 37. Kg4 {[%clk 0:00:03.9]}
37... h5+ {[%clk 0:00:29.2]} 0-1

[Event "Late-Titled-Tuesday-Blitz-September-19-2023"]
[Site "Chess.com"]
[Date "2023.09.19"]
[Round "4"]
[White "Hikaru"]
[Black "Vaathi_Coming"]
[Result "1-0"]
[WhiteElo "3249"]
[BlackElo "2873"]
[TimeControl "180+1"]
[EndTime "14:37:25 PDT"]
[Termination "Hikaru won on time"]

1. Nf3 {[%clk 0:03:00.9]} 1... g6 {[%clk 0:02:51.5]} 2. e4 {[%clk 0:03:00.8]}
2... c5 {[%clk 0:02:49.7]} 3. c3 {[%clk 0:02:59.3]} 3... d5 {[%clk 0:02:42.4]}
4. exd5 {[%clk 0:02:57]} 4... Qxd5 {[%clk 0:02:43.3]} 5. Na3 {[%clk 0:02:56.3]}
5... Bg7 {[%clk 0:02:39.5]} 6. d4 {[%clk 0:02:56.6]} 6... Nf6 {[%clk 0:02:33.6]}
7. Nb5 {[%clk 0:02:54.3]} 7... Na6 {[%clk 0:02:25.8]} 8. Be3 {[%clk 0:02:53.8]}
8... cxd4 {[%clk 0:02:00.7]} 9. Qxd4 {[%clk 0:02:54.7]} 9... O-O {[%clk
0:01:50.1]} 10. Nxa7 {[%clk 0:02:15.5]} 10... Bg4 {[%clk 0:01:24.9]} 11. Be2
{[%clk 0:01:28.7]} 11... Nc7 {[%clk 0:01:11.3]} 12. Qxd5 {[%clk 0:00:36.3]}
12... Nfxd5 {[%clk 0:01:08.1]} 13. Nb5 {[%clk 0:00:37.2]} 13... Nxe3 {[%clk
0:00:25.1]} 14. fxe3 {[%clk 0:00:36.1]} 14... Nd5 {[%clk 0:00:24.1]} 15. Kf2
{[%clk 0:00:32.8]} 15... Bh6 {[%clk 0:00:16.9]} 16. e4 {[%clk 0:00:33.3]} 16...
Nf6 {[%clk 0:00:08.6]} 17. Bd3 {[%clk 0:00:28.1]} 17... Rfd8 {[%clk 0:00:06.8]}
18. Rhd1 {[%clk 0:00:28.8]} 18... Be6 {[%clk 0:00:06.5]} 19. Na3 {[%clk
0:00:19.2]} 19... Ng4+ {[%clk 0:00:05.2]} 20. Ke2 {[%clk 0:00:19.8]} 20... Ne3
{[%clk 0:00:03.8]} 21. Rg1 {[%clk 0:00:20.4]} 21... Bg4 {[%clk 0:00:02.7]} 22.
h3 {[%clk 0:00:20.1]} 22... Be6 {[%clk 0:00:02.5]} 23. Nd4 {[%clk 0:00:19.6]}
23... Bd7 {[%clk 0:00:02.3]} 24. Nc4 {[%clk 0:00:17.3]} 24... Nxc4 {[%clk
0:00:02]} 25. Bxc4 {[%clk 0:00:18.2]} 25... e6 {[%clk 0:00:02.8]} 26. Rgd1
{[%clk 0:00:17.9]} 26... Bg7 {[%clk 0:00:03.5]} 27. Nf3 {[%clk 0:00:17.8]} 27...
Bc6 {[%clk 0:00:03.6]} 28. Rxd8+ {[%clk 0:00:18.5]} 28... Rxd8 {[%clk
0:00:03.8]} 29. Bd3 {[%clk 0:00:19.4]} 29... Ra8 {[%clk 0:00:03.5]} 30. a3
{[%clk 0:00:19.7]} 30... f5 {[%clk 0:00:03.8]} 31. Bc4 {[%clk 0:00:18.6]} 31...
Bxe4 {[%clk 0:00:02.6]} 32. Rd1 {[%clk 0:00:17]} 32... Kf8 {[%clk 0:00:02]} 33.
Ng5 {[%clk 0:00:16.6]} 33... Bxg2 {[%clk 0:00:01.3]} 34. Nxe6+ {[%clk
0:00:16.9]} 34... Kg8 {[%clk 0:00:01.5]} 35. Nf4+ {[%clk 0:00:16.7]} 1-0

[Event "Late-Titled-Tuesday-Blitz-September-19-2023"]
[Site "Chess.com"]
[Date "2023.09.19"]
[Round "4"]
[White "serhanberat_ozdemir"]
[Black "kaanadayhamle"]
[Result "0-1"]
[WhiteElo "2613"]
[BlackElo "2461"]
[TimeControl "180+1"]
[EndTime "14:37:26 PDT"]
[Termination "kaanadayhamle won on time"]

1. e4 {[%clk 0:02:51]} 1... e6 {[%clk 0:02:58.4]} 2. d4 {[%clk 0:02:45.3]} 2...
d5 {[%clk 0:02:59.3]} 3. Nd2 {[%clk 0:02:45.2]} 3... dxe4 {[%clk 0:02:55.8]} 4.
Nxe4 {[%clk 0:02:46.1]} 4... Nd7 {[%clk 0:02:55.2]} 5. Nf3 {[%clk 0:02:41.6]}
5... Ngf6 {[%clk 0:02:55]} 6. Bd3 {[%clk 0:02:41.6]} 6... b6 {[%clk 0:02:53.3]}
7. Qe2 {[%clk 0:02:37.1]} 7... Bb7 {[%clk 0:02:52.9]} 8. Nxf6+ {[%clk
0:02:27.8]} 8... Nxf6 {[%clk 0:02:53.8]} 9. Bf4 {[%clk 0:02:27.5]} 9... Bd6
{[%clk 0:02:53.3]} 10. Bg5 {[%clk 0:02:26.3]} 10... h6 {[%clk 0:02:49.4]} 11.
Bd2 {[%clk 0:02:25]} 11... Qe7 {[%clk 0:02:30]} 12. Bb5+ {[%clk 0:02:03.9]}
12... c6 {[%clk 0:02:27.7]} 13. Bd3 {[%clk 0:02:03.2]} 13... O-O-O {[%clk
0:02:27.4]} 14. O-O-O {[%clk 0:01:51.8]} 14... Nd5 {[%clk 0:02:23.6]} 15. Ne5
{[%clk 0:01:46.5]} 15... Qf6 {[%clk 0:01:47.1]} 16. Ba6 {[%clk 0:01:21.7]} 16...
Kb8 {[%clk 0:01:32.6]} 17. Rhe1 {[%clk 0:01:06.5]} 17... Nf4 {[%clk 0:00:58.3]}
18. Qe4 {[%clk 0:01:00.4]} 18... Nd5 {[%clk 0:00:43.6]} 19. Bxb7 {[%clk
0:00:52.2]} 19... Kxb7 {[%clk 0:00:44.5]} 20. c4 {[%clk 0:00:43.3]} 20... Ne7
{[%clk 0:00:44.3]} 21. f4 {[%clk 0:00:41.3]} 21... Bxe5 {[%clk 0:00:41.5]} 22.
dxe5 {[%clk 0:00:31.9]} 22... Qf5 {[%clk 0:00:39.7]} 23. Qf3 {[%clk 0:00:16.2]}
23... Rd3 {[%clk 0:00:32.8]} 24. Re3 {[%clk 0:00:15.7]} 24... Rxe3 {[%clk
0:00:33]} 25. Bxe3 {[%clk 0:00:16.6]} 25... Kc7 {[%clk 0:00:22.3]} 26. Rd6
{[%clk 0:00:06.7]} 26... Rc8 {[%clk 0:00:08.8]} 27. Qd1 {[%clk 0:00:06.2]} 27...
Kb8 {[%clk 0:00:09.1]} 28. Rd7 {[%clk 0:00:05.9]} 28... Qe4 {[%clk 0:00:08.4]}
29. Qd6+ {[%clk 0:00:05.2]} 29... Ka8 {[%clk 0:00:08.6]} 30. Bd2 {[%clk
0:00:01.7]} 30... Qxc4+ {[%clk 0:00:07.8]} 31. Bc3 {[%clk 0:00:02.2]} 31... Nd5
{[%clk 0:00:06.9]} 32. Qe7 {[%clk 0:00:01.9]} 32... Nxe7 {[%clk 0:00:07.1]} 0-1

[Event "Late-Titled-Tuesday-Blitz-September-19-2023"]
[Site "Chess.com"]
[Date "2023.09.19"]
[Round "4"]
[White "IlanSchnaider"]
[Black "Kleyton_Lima"]
[Result "1-0"]
[WhiteElo "2755"]
[BlackElo "2541"]
[TimeControl "180+1"]
[EndTime "14:37:27 PDT"]
[Termination "IlanSchnaider won by resignation"]

1. e4 {[%clk 0:02:39.9]} 1... c5 {[%clk 0:02:59]} 2. Nf3 {[%clk 0:02:40.3]} 2...
d6 {[%clk 0:02:58.6]} 3. Bb5+ {[%clk 0:02:40.7]} 3... Bd7 {[%clk 0:02:58.5]} 4.
Bxd7+ {[%clk 0:02:40.6]} 4... Nxd7 {[%clk 0:02:59.4]} 5. O-O {[%clk 0:02:40.5]}
5... Ngf6 {[%clk 0:02:59.9]} 6. Re1 {[%clk 0:02:40.6]} 6... a6 {[%clk
0:02:59.4]} 7. c3 {[%clk 0:02:40.6]} 7... e6 {[%clk 0:02:59.4]} 8. d4 {[%clk
0:02:41.2]} 8... Be7 {[%clk 0:02:59.8]} 9. h3 {[%clk 0:02:40.1]} 9... O-O {[%clk
0:02:56.9]} 10. Bf4 {[%clk 0:02:40.6]} 10... cxd4 {[%clk 0:02:56]} 11. cxd4
{[%clk 0:02:40.7]} 11... b5 {[%clk 0:02:53.9]} 12. Nbd2 {[%clk 0:02:40]} 12...
Rc8 {[%clk 0:02:52.4]} 13. Nf1 {[%clk 0:02:40]} 13... Nb6 {[%clk 0:02:49.7]} 14.
Ng3 {[%clk 0:02:32.7]} 14... Qc7 {[%clk 0:02:48.9]} 15. Rc1 {[%clk 0:02:31.7]}
15... Qb7 {[%clk 0:02:48.9]} 16. e5 {[%clk 0:02:30.8]} 16... dxe5 {[%clk
0:02:46.4]} 17. Bxe5 {[%clk 0:02:30.6]} 17... Nfd7 {[%clk 0:02:40.2]} 18. Qd2
{[%clk 0:02:27]} 18... Nc4 {[%clk 0:02:35.5]} 19. Qf4 {[%clk 0:02:24.4]} 19...
Ndxe5 {[%clk 0:02:31.2]} 20. dxe5 {[%clk 0:02:22.6]} 20... Nxb2 {[%clk 0:02:25]}
21. Qg4 {[%clk 0:02:22.5]} 21... Nd3 {[%clk 0:02:10.3]} 22. Rxc8 {[%clk
0:02:06.4]} 22... Rxc8 {[%clk 0:02:10]} 23. Rd1 {[%clk 0:01:50.1]} 23... Rc1
{[%clk 0:01:49.1]} 24. Rxc1 {[%clk 0:01:45.5]} 24... Nxc1 {[%clk 0:01:50]} 25.
Nh5 {[%clk 0:01:46.1]} 25... Bf8 {[%clk 0:01:39.6]} 26. Nf6+ {[%clk 0:01:43.1]}
26... Kh8 {[%clk 0:01:39.1]} 27. Nxh7 {[%clk 0:01:03.6]} 27... Kxh7 {[%clk
0:00:23.8]} 28. Qh5+ {[%clk 0:01:03.7]} 28... Kg8 {[%clk 0:00:22.6]} 29. Ng5
{[%clk 0:01:04.6]} 29... Ba3 {[%clk 0:00:12.9]} 30. Qh7+ {[%clk 0:00:59.5]}
30... Kf8 {[%clk 0:00:13.4]} 31. Qh8+ {[%clk 0:00:58]} 31... Ke7 {[%clk
0:00:13.2]} 32. Qxg7 {[%clk 0:00:58.9]} 32... Ke8 {[%clk 0:00:11.3]} 33. Qg8+
{[%clk 0:00:59.3]} 33... Bf8 {[%clk 0:00:11.7]} 34. Nh7 {[%clk 0:00:55.9]} 34...
Qe7 {[%clk 0:00:10.6]} 35. Nf6+ {[%clk 0:00:56.2]} 35... Kd8 {[%clk 0:00:09.8]}
36. Qg5 {[%clk 0:00:54.4]} 36... Ne2+ {[%clk 0:00:09.3]} 37. Kf1 {[%clk
0:00:54.5]} 37... Nd4 {[%clk 0:00:09.7]} 38. Qd2 {[%clk 0:00:48.4]} 38... Qc5
{[%clk 0:00:06.3]} 39. Qa5+ {[%clk 0:00:49]} 39... Ke7 {[%clk 0:00:04.1]} 40.
Kg1 {[%clk 0:00:42.9]} 40... Qc1+ {[%clk 0:00:04.1]} 41. Kh2 {[%clk 0:00:41.8]}
41... Qf4+ {[%clk 0:00:02.1]} 42. Kh1 {[%clk 0:00:42.5]} 42... Qc1+ {[%clk
0:00:01.2]} 43. Kh2 {[%clk 0:00:43.3]} 43... Qf4+ {[%clk 0:00:01.4]} 44. g3
{[%clk 0:00:44.2]} 44... Qc1 {[%clk 0:00:02.1]} 45. Qb4+ {[%clk 0:00:42.6]}
45... Kd8 {[%clk 0:00:02]} 46. Qxf8+ {[%clk 0:00:43.3]} 46... Kc7 {[%clk
0:00:02.9]} 47. Qd6+ {[%clk 0:00:41.1]} 47... Kb7 {[%clk 0:00:03.1]} 48. Qxd4
{[%clk 0:00:41.8]} 1-0

[Event "Late-Titled-Tuesday-Blitz-September-19-2023"]
[Site "Chess.com"]
[Date "2023.09.19"]
[Round "4"]
[White "enestnrvrd"]
[Black "JG-17"]
[Result "1-0"]
[WhiteElo "2680"]
[BlackElo "2511"]
[TimeControl "180+1"]
[EndTime "14:37:28 PDT"]
[Termination "enestnrvrd won on time"]

1. Nf3 {[%clk 0:02:45.1]} 1... Nf6 {[%clk 0:02:59.3]} 2. d4 {[%clk 0:02:45.4]}
2... d5 {[%clk 0:02:58.3]} 3. g3 {[%clk 0:02:46.1]} 3... e6 {[%clk 0:02:53.2]}
4. Bg2 {[%clk 0:02:47]} 4... Be7 {[%clk 0:02:53.6]} 5. O-O {[%clk 0:02:47.7]}
5... O-O {[%clk 0:02:54.2]} 6. c4 {[%clk 0:02:48.1]} 6... dxc4 {[%clk
0:02:54.7]} 7. Ne5 {[%clk 0:02:46.8]} 7... Nc6 {[%clk 0:02:54]} 8. Nxc6 {[%clk
0:02:43.4]} 8... bxc6 {[%clk 0:02:54.9]} 9. Na3 {[%clk 0:02:40.5]} 9... Bxa3
{[%clk 0:02:54.2]} 10. bxa3 {[%clk 0:02:41.4]} 10... Ba6 {[%clk 0:02:49.2]} 11.
Bb2 {[%clk 0:02:30.2]} 11... Rb8 {[%clk 0:02:42.3]} 12. Qc2 {[%clk 0:02:26.9]}
12... Nd5 {[%clk 0:02:31.2]} 13. Rfe1 {[%clk 0:02:19.4]} 13... Bb5 {[%clk
0:01:56.1]} 14. e4 {[%clk 0:02:16.5]} 14... Nb6 {[%clk 0:01:56.1]} 15. Bc3
{[%clk 0:01:57.1]} 15... Na4 {[%clk 0:01:54.8]} 16. Bb4 {[%clk 0:01:52.9]} 16...
Qxd4 {[%clk 0:01:40.7]} 17. Bxf8 {[%clk 0:01:51.6]} 17... Rxf8 {[%clk
0:01:41.5]} 18. Rad1 {[%clk 0:01:51.9]} 18... Qc5 {[%clk 0:01:35.5]} 19. e5
{[%clk 0:01:47.6]} 19... Qxa3 {[%clk 0:01:32.5]} 20. Re3 {[%clk 0:01:31.9]}
20... Qb2 {[%clk 0:01:24.9]} 21. Qxb2 {[%clk 0:01:23.2]} 21... Nxb2 {[%clk
0:01:25.8]} 22. Rd7 {[%clk 0:01:23.5]} 22... Rc8 {[%clk 0:01:20.2]} 23. Ra3
{[%clk 0:01:11.4]} 23... Na4 {[%clk 0:00:57.6]} 24. Bf1 {[%clk 0:01:09.9]} 24...
c3 {[%clk 0:00:48.3]} 25. Rd1 {[%clk 0:01:04.1]} 25... Kf8 {[%clk 0:00:29.3]}
26. Rb3 {[%clk 0:01:02.8]} 26... a6 {[%clk 0:00:27.7]} 27. f4 {[%clk 0:00:55.8]}
27... Ke7 {[%clk 0:00:27.8]} 28. Kf2 {[%clk 0:00:55.8]} 28... Rd8 {[%clk
0:00:26.9]} 29. Rxd8 {[%clk 0:00:53.7]} 29... c2 {[%clk 0:00:25.4]} 30. Bxb5
{[%clk 0:00:37.4]} 30... c1=Q {[%clk 0:00:24.1]} 31. Rbd3 {[%clk 0:00:36.6]}
31... Qc2+ {[%clk 0:00:08.3]} 32. Kf3 {[%clk 0:00:32.6]} 32... Qxd3+ {[%clk
0:00:04.3]} 33. Rxd3 {[%clk 0:00:27.7]} 33... cxb5 {[%clk 0:00:05]} 34. Ke3
{[%clk 0:00:22.5]} 34... c5 {[%clk 0:00:04.4]} 35. Rd6 {[%clk 0:00:22.4]} 35...
a5 {[%clk 0:00:02.8]} 36. Ra6 {[%clk 0:00:22.3]} 36... c4 {[%clk 0:00:02.3]} 37.
Rxa5 {[%clk 0:00:22]} 37... Nc3 {[%clk 0:00:03]} 38. Kd2 {[%clk 0:00:20.2]}
38... Nb1+ {[%clk 0:00:01.7]} 39. Kc2 {[%clk 0:00:19.8]} 1-0